{"text_format":"1","workbook":"xlsx","n_sheets":8,"sheets":["Instrucciones","Características datos","InfoBase 6B1","InfoProc 6B1","Prop. y Fact. de conversión","FE 6B1","Emisiones GEI 6B1","Resultados INGEI"],"not_rendered":{"charts":2,"images":9,"macros":1,"external_links":0,"defined_names":0,"comments":2,"pivot_tables":0},"unopened":[],"bounds":{"document_bytes":16777216,"sheet_cells":100000,"rows_first":2000,"rows_last":500,"rows_between":2000,"halvings":0,"cell_chars":16384,"cell_head_chars":4096},"cells_cut":0,"cells_raw":0,"read":"whole","date_system":"1900"}

{"sheet":"Instrucciones","index":0,"n_rows":90,"n_cols":6,"rows_kept":90,"cut":false,"hidden":false,"merged":[[14,1,14,17],[1,1,1,17],[2,1,2,17],[4,1,4,17],[6,1,6,17],[7,1,7,17],[74,1,74,17],[25,5,25,17],[26,5,27,17],[28,5,28,17],[31,1,31,17],[35,2,35,8],[67,1,67,17],[36,2,36,8],[37,2,37,8],[38,2,38,8],[39,2,39,8],[40,2,40,8],[41,2,41,8]]}
[]
[null,"INVENTARIO NACIONAL DE GASES DE EFECTO INVERNADERO - AÑO BASE 2012"]
[null,"SECTOR DESECHOS"]
[]
[null,"INSTRUCCIONES "]
[]
[null,"ALCANCE"]
[null,"Según las Directrices del IPCC de 2006; El Sector residuos, categoría Residuos sólidos involucra a todas las emisiones de gases de efecto invernadero que se generan por :"]
[]
[null,"6A: Eliminación de residuos sólidos"]
[null,"6B: Tratamientos de aguas residuales"]
[null,"   6 B 1: Aguas residuales industriales"]
[null,"   6 B 2: Aguas residuales domésticas y comerciales"]
[]
[null,"METODOLOGÍA DE CALCULO"]
[]
[null,"Directrices del IPCC para Inventarios Nacionales del IPCC - 2006 (IPCC 2006) en lo que respecta a residuos sólidos"]
[null,"Directrices del IPCC para Inventarios Nacionales del IPCC - 1996 (IPCC 1996) en lo que respecta a aguas residuales"]
[null,"Orientación del IPCC sobre las buenas prácticas y la gestión de la incertidumbre en los inventarios nacionales de Gases de Efecto Invernadero"]
[null,"Sector: Desechos"]
[null,null,null,null,null,"Para el cálculo de Emisiones GEI:"]
[]
[]
[]
[]
[null,null,null,null,null,"Nivel 1: El método mas básico que es aplicado cuando se utiliza niveles de actividad disponibles y factores de emisión por defecto de las guías del IPCC."]
[null,null,null,null,null,"Nivel 2: Método intermedio de cálculo en términos de esfuerzo y sofisticación, en la mayoría de casos se basa en el uso de niveles de actividad disponible y factores de emisión mas detallados o específicos."]
[]
[null,null,null,null,null,"Nivel 3: El método mas exigente en términos de complejidad y requerimientos de datos, usualmente implica el uso de modelos y ecuaciones complejas."]
[]
[]
[null,"ESTRUCTURA DE LA HOJA DE CALCULO "]
[]
[null,"Las hojas de cálculo, en este libro, están agrupadas por los siguientes colores:"]
[]
[null,"Color de hoja","Descripción"]
[null,null,"Caracterización de datos"]
[null,null,"Información base de nivel de actividad"]
[null,null,"Información procesada de nivel de actividad"]
[null,null,"Propiedades, Factores de conversión y Factores de emisión de GEI"]
[null,null,"Hojas de estimaciones de emisiones GEI por la disposición de residuos sólidos"]
[null,null,"Resultados GEI por residuos sólidos"]
[]
[null,"Los grupos de hojas se relacionan como se muestra en el diagrama:"]
[]
[]
[]
[]
[]
[]
[]
[]
[]
[]
[]
[]
[]
[]
[]
[]
[]
[]
[]
[]
[]
[]
[]
[null,"TIPO DE CELDAS (PARA HOJAS DE ESTIMACIONES)"]
[]
[null,null,"Datos a ingresar"]
[null,null,"Datos preestablecidos "]
[null,null,"Factores calculados"]
[null,null,"Datos calculados "]
[]
[null,"ABREVIATURAS "]
[]
[null,"GEI",": Gases de Efecto Invernadero"]
[null,"FE",": Factor de Emisión"]
[null,"INFOBASE",": Información de Base "]
[null,"4A",": Eliminación de residuos sólidos"]
[null,"4B",": Tratamiento biológico de los residuos sólidos"]
[null,"4C",": Incineración de los residuos sólidos"]
[null,"INFORESUMEN",": Información resumen"]
[null,"INGEI",": Inventario Nacional de Gases de Efecto Invernadero "]
[null,"CO2",": Dióxido de carbono "]
[null,"CH4",": Metano"]
[null,"N2O",": Oxido Nitroso"]
[null,"CO2e",": Dióxido de carbono equivalente"]
[null,"SEDS",": Sitios de eliminación de residuos sólidos (SEDS)"]
[null,"Bo",": Capacidad máxima de producción de metano"]

{"sheet":"Características datos","index":1,"n_rows":16,"n_cols":14,"rows_kept":16,"cut":false,"hidden":false,"merged":[[11,11,13,11],[11,10,13,10],[11,5,15,5],[8,1,15,1],[8,2,15,2],[11,4,13,4],[11,3,13,3],[14,3,15,3],[14,4,15,4],[1,1,1,13],[8,3,10,3],[8,4,10,4],[8,5,10,5],[8,11,10,11],[8,10,10,10],[4,1,7,1],[4,2,7,2],[4,3,7,3],[4,4,7,4],[4,5,7,5],[4,11,7,11]]}
[]
[null,"Caracterización de Datos - Sector Desechos (Residuos sólidos)"]
[]
[null,"Nombre de Categoría","Código","Subcodigo","Fuente de emisión / captura","Definición","Nivel de actividad","Unidad","TIER/Nivel","Fuente de información","Uso de la información","Gases de GEI generados por el nivel de actividad","Comentarios","Hojas relacionada"]
[null,"Eliminación de residuos sólidos","6A","6A1","Residuos sólidos","Definición IPCC: Emisiones de metano producidas durante la descomposición anáerobica de los residuos sólidos en vertederos.\n\nDefinición INGEI: Emisiones de metano procedentes de la descomposición anaeróbica de los residuos sólidos dispuestos en sitios de eliminación de desechos sólidos (SEDS) que no son gestionados.","Población urbana según región/provincia/distrito (información mas cercana al año en estudio)","Personas",1,"Instituto Nacional de Estadísticas e Informática (INEI)","Permite conocer que fracción en cada distrito es de tipo urbana","CH4",null,"infoBase6A (Censo2007)"]
[null,null,null,null,null,null,"Población nacional según región, provincia y distritos","Personas",1,"Instituto Nacional de Estadísticas e Informática (INEI)","En base a esta se determina la cantidad de residuos sólidos generados",null,null,"infoBase6A(poblac2010)\n"]
[null,null,null,null,null,null,"Caracterización de residuos sólidos","% según tipo de residuo",1,"Informes nacionales de residuos sólidos\nEstudios de caracterización de residuos sólidos\nPlan Integral de Gestión de Residuos Sólidos (PIGARS)","Sirven para determinar, segúnla cantidad de carbono presente en cada tipo de residuos",null,null,"infoBase6A(Composición)"]
[null,null,null,null,null,null,"Generación anual de residuos sólidos.","Gg",1,"Ministerio del Ambiente (MINAM) - Dirección General de Calidad Ambiental (DGCA)","Está información se utiliza para estimar, en base a su contenido de carbono orgánico degradable (COD) y otras variables, las emisiones de metano que se generan por la descomposición de los residuos sólidos.",null,null,"infoBase6A(Caract. y GPC)"]
[null,"Tratamiento de aguas residuales","6B","6B1","Efluentes industriales","Definición IPCC: Emisiones de metano que se generan en los procesos de recolección, tratamiento y disposición en aguas superficiales de las aguas residuales y lodos generados procedentes de industrias tales como: alimentos, textiles, pulpa y producción de papel, entre otras.\n\nDefinición INGEI:  Emisiones de metano generadas en los procesos de tratamiento de aguas residuales industriales y la descomposición de los respectivos lodos generados.","Producción industrial según tipo de industria.","t/año",1,"Ministerio de la Producción (PRODUCE)","Sirven para determinar en su conjunto las emisiones de metano generadas por el tratamiento de las aguas residuales industriales.","CH4",null,"InfoBase 6B1\nInfoProc 6B1"]
[null,null,null,null,null,null,"Componente orgánico degradable (DQO)","Kg DQO/m3 agua residual",1,"Orientación del IPCC sobre las buenas prácticas y la gestión de la incertidumbre en los inventarios nacionales de gases de efecto invernadero",null,null,null,"FE 6B1"]
[null,null,null,null,null,null,"Agua residual generada","(m3/tonelada de producto)",1,"Orientación del IPCC sobre las buenas prácticas y la gestión de la incertidumbre en los inventarios nacionales de gases de efecto invernadero",null,null,null,"FE 6B1"]
[null,null,null,"6B2a","Aguas residuales domésticas","Definición IPCC: Emisiones de metano que se generan en los tratamientos de aguas residuales y lodos procedentes de las viviendas y fuentes comerciales. Se consideran además las emisiones de oxido nitroso procedentes de las excretas humanas vertidas en ambientes acuáticos. \n\nDefinición INGEI:  Emisiones de metano generadas en los procesos de tratamiento de aguas residuales domésticas y comerciales, además de la descomposición de los respectivos lodos generados. Se considera también las emisiones de oxido nitroso generadas por excretas humanas.","Población según región","en miles",1,"Instituto Nacional de Estadísticas e Informática (INEI)","Sirven para determinar en su conjunto las emisiones de metano generadas por el tratamiento de las aguas residuales domésticas.","CH4",null,"InfoBase 6B2 AR\nInfoProc 6B2 AR"]
[null,null,null,null,null,null,"Componente orgánico degradable (DBO)","Kg DBO/1000 pesonas año",1,"Reglamento Nacional de Edificaciones – Norma OS.090: Plantas de Tratamiento de Aguas Residuales. (Debe hacerse un ajuste para llevarlo a las unidades requeridas).",null,null,null,"Prop. Y Fact. de conversión\nInfoProc 6B2"]
[null,null,null,null,null,null,"Volumen de aguas residuales tratadas","% ó m3",1,"Superintendencia Nacional de Servicios de Saneamiento (SUNASS)",null,null,null,"InfoBase 6B2 AR\n"]
[null,null,null,"6B2b","Excretas humanas",null,"Población nacional","Personas"]
[null,null,null,null,null,null,"Consumo de proteínas","g/persona.día",1,"Organización de las Naciones Unidas para la Agricultura y la Alimentación (FAO)","Sirve para determinar la cantidad de nitrógeno contenida en la orina humana","N2O",null,"InfoBase 6B2 EH"]

{"sheet":"InfoBase 6B1","index":2,"n_rows":57,"n_cols":9,"rows_kept":57,"cut":false,"hidden":false,"merged":[[53,1,53,2],[54,1,54,2],[55,1,55,2],[56,1,56,2],[16,1,16,2],[47,1,47,2],[48,1,48,2],[49,1,49,2],[50,1,50,2],[51,1,51,2],[52,1,52,2],[41,1,41,2],[42,1,42,2],[43,1,43,2],[44,1,44,2],[45,1,45,2],[46,1,46,2],[35,1,35,2],[36,1,36,2],[37,1,37,2],[38,1,38,2],[39,1,39,2],[40,1,40,2],[34,1,34,2],[23,1,23,2],[24,1,24,2],[25,1,25,2],[26,1,26,2],[27,1,27,2],[28,1,28,2],[29,1,29,2],[30,1,30,2],[31,1,31,2],[32,1,32,2],[33,1,33,2],[22,1,22,2],[10,3,10,4],[10,6,10,7],[11,2,11,9],[12,1,13,1],[12,2,12,9],[13,2,13,9],[17,1,17,2],[18,1,18,2],[19,1,19,2],[20,1,20,2],[21,1,21,2],[1,1,1,9],[3,1,3,9],[4,2,4,9],[5,2,5,9],[6,1,9,1],[6,3,6,9],[7,3,7,9],[8,3,8,9],[9,3,9,9]]}
[]
[null,"Información Básica: Estadísticas sobre producción nacional de diversos productos"]
[]
[null,"DATOS DE LA INFORMACIÓN BASE"]
[null,"Código","6 B 1"]
[null,"Subcodigo "]
[null,"Información ","Nivel de actividad","Producción"]
[null,null,"Documento","Anuario Estadístico Industrial, Mipyme y Comercio Interno 2012"]
[null,null,"Título ","RELACIÓN DE PRINCIPALES PRODUCTOS QUE PARTICIPAN EN LA MUESTRA DEL ÍNDICE DE CRECIMIENTO INDUSTRIAL, 2003-12"]
[null,null,"Subtitulo"]
[null,"Ubicación especifica","Pagina",81,null,"Cuadro",null,null,"Anexo "]
[null,"Vínculo","http://www.produce.gob.pe/images/stories/Repositorio/estadistica/anuario/anuario-estadistico-2012.pdf"]
[null,"Institución ","Ministerio de la Producción - PRODUCE"]
[]
[]
[]
[null,"DESCRIPCIÓN",null,"UNIDAD ",2010,null,"Relación de esta hoja, con otras:"]
[null,"ALIMENTOS"]
[null,"Carne de Ave Beneficiada",null,"TM.",782365]
[null,"Carne de Vacuno Beneficiada",null,"TM.",171872]
[null,"Conservas de Pescados y Mariscos",null,"TM.",77800]
[null,"Harina de Anchoveta, otras Especies y Residuos",null,"TM.",787400]
[null,"Jugos y Refrescos Diversos",null,"KG.",310346156]
[null,"Esparragos Congelados",null,"KG.",10603000]
[null,"Conservas de Esparragos",null,"KG.",31735000]
[null,"Margarina",null,"TM.",21920]
[null,"Aceites Vegetal y Compuesto",null,"TM.",233965]
[null,"Leche Evaporada",null,"TM.",409468.9]
[null,"Quesos",null,"KG.",6358934.9000000004]
[null,"Yogurt",null,"KG.",135351577]
[null,"Azúcar Refinada",null,"TM.",1039167.5]
[]
[null,"ELABORACION DE BEBIDAS"]
[null,"Vinos y Espumantes",null,"LT.",9794177]
[null,"Cerveza Blanca",null,"ML.LT.",1230334.8]
[]
[null,"FABRICACION DE PAPEL Y DE PRODUCTOS DE PAPEL"]
[null,"Papel Kraft y Similares",null,"TM.",3429.2]
[null,"Papel Bond y Similares",null,"TM.",38625.300000000003]
[null,"Cartón Liner",null,"TM.",55856.800000000003]
[null,"Cartón Corrugado",null,"TM.",18725.099999999999]
[]
[null,"FABRICACION DE OTROS PRODUCTOS QUIMICOS"]
[null,"Productos de Limpieza del Hogar",null,"KG.",22807607]
[null,"Champú",null,"TM.",7679.2]
[null,"Detergentes",null,"TM.",169944.9]
[null,"Jabón para Lavar Ropa",null,"TM.",34024.9]
[null,"Jabón de Tocador",null,"TM.",6973]
[]
[null,"FABRICACION DE PRODUCTOS DE PLASTICO"]
[null,"Polietileno (Consumo de)",null,"KG.",42688121.700000003]
[null,"Poliestireno (Consumo de)",null,"KG.",1083703.5]
[null,"Polipropileno (Consumo de)",null,"KG.",40956920.100000001]
[null,"P V C (Consumo de)",null,"KG.",69437689.599999994]
[null,"Plastificantes D O P (Consumo de)",null,"KG.",3016367]
[null,"Masterbatch (Consumo de)",null,"KG.",1465874.8]
[null,"Resina Pet para Envases (Consumo de)",null,"KG.",84830154.099999994]

{"sheet":"InfoProc 6B1","index":3,"n_rows":44,"n_cols":6,"rows_kept":44,"cut":false,"hidden":false,"merged":[[1,1,1,3]]}
[]
[null,"Información Procesada: Producción anual en toneladas"]
[]
[null,"DESCRIPCIÓN","UNIDAD ",2012,null,"Relación de esta hoja, con otras:"]
[null,"ALIMENTOS"]
[null,"Carne de Ave Beneficiada","t",{"$f":"'InfoBase 6B1'!E19","v":782365}]
[null,"Carne de Vacuno Beneficiada","t",{"$f":"'InfoBase 6B1'!E20","v":171872}]
[null,"Conservas de Pescados y Mariscos","t",{"$f":"'InfoBase 6B1'!E21","v":77800}]
[null,"Harina de Anchoveta, otras Especies y Residuos","t",{"$f":"'InfoBase 6B1'!E22","v":787400}]
[null,"Jugos y Refrescos Diversos","t",{"$f":"'InfoBase 6B1'!E23/'Prop. y Fact. de conversión'!$C$5","v":310346.15600000002}]
[null,"Esparragos Congelados","t",{"$f":"'InfoBase 6B1'!E24/'Prop. y Fact. de conversión'!$C$5","v":10603}]
[null,"Conservas de Esparragos","t",{"$f":"'InfoBase 6B1'!E25/'Prop. y Fact. de conversión'!$C$5","v":31735}]
[null,"Margarina","t",{"$f":"'InfoBase 6B1'!E26","v":21920}]
[null,"Aceites Vegetal y Compuesto","t",{"$f":"'InfoBase 6B1'!E27","v":233965}]
[null,"Leche Evaporada","t",{"$f":"'InfoBase 6B1'!E28","v":409468.9}]
[null,"Quesos","t",{"$f":"'InfoBase 6B1'!E29/'Prop. y Fact. de conversión'!$C$5","v":6358.9349000000002}]
[null,"Yogurt","t",{"$f":"'InfoBase 6B1'!E30/'Prop. y Fact. de conversión'!$C$5","v":135351.57699999999}]
[null,"Azúcar Refinada","t",{"$f":"'InfoBase 6B1'!E31","v":1039167.5}]
[]
[null,"ELABORACION DE BEBIDAS"]
[null,"Vinos y Espumantes","t",{"$f":"'InfoBase 6B1'!E34*'Prop. y Fact. de conversión'!C34/'Prop. y Fact. de conversión'!$D$13","v":9759.8973805000005}]
[null,"Cerveza Blanca","t",{"$f":"'InfoBase 6B1'!E35*'Prop. y Fact. de conversión'!C35/'Prop. y Fact. de conversión'!$D$13*1000","v":1242638.148}]
[]
[null,"FABRICACION DE PAPEL Y DE PRODUCTOS DE PAPEL"]
[null,"Papel Kraft y Similares","t",{"$f":"'InfoBase 6B1'!E38","v":3429.2}]
[null,"Papel Bond y Similares","t",{"$f":"'InfoBase 6B1'!E39","v":38625.300000000003}]
[null,"Cartón Liner","t",{"$f":"'InfoBase 6B1'!E40","v":55856.800000000003}]
[null,"Cartón Corrugado","t",{"$f":"'InfoBase 6B1'!E41","v":18725.099999999999}]
[]
[null,"FABRICACION DE OTROS PRODUCTOS QUIMICOS"]
[null,"Productos de Limpieza del Hogar","t",{"$f":"'InfoBase 6B1'!E44/'Prop. y Fact. de conversión'!$C$5","v":22807.607}]
[null,"Champú","t",{"$f":"'InfoBase 6B1'!E45","v":7679.2}]
[null,"Detergentes","t",{"$f":"'InfoBase 6B1'!E46","v":169944.9}]
[null,"Jabón para Lavar Ropa","t",{"$f":"'InfoBase 6B1'!E47","v":34024.9}]
[null,"Jabón de Tocador","t",{"$f":"'InfoBase 6B1'!E48","v":6973}]
[]
[null,"FABRICACION DE PRODUCTOS DE PLASTICO"]
[null,"Polietileno (Consumo de)","t",{"$f":"'InfoBase 6B1'!E51/'Prop. y Fact. de conversión'!$C$5","v":42688.121700000003}]
[null,"Poliestireno (Consumo de)","t",{"$f":"'InfoBase 6B1'!E52/'Prop. y Fact. de conversión'!$C$5","v":1083.7035000000001}]
[null,"Polipropileno (Consumo de)","t",{"$f":"'InfoBase 6B1'!E53/'Prop. y Fact. de conversión'!$C$5","v":40956.920100000003}]
[null,"P V C (Consumo de)","t",{"$f":"'InfoBase 6B1'!E54/'Prop. y Fact. de conversión'!$C$5","v":69437.689599999998}]
[null,"Plastificantes D O P (Consumo de)","t",{"$f":"'InfoBase 6B1'!E55/'Prop. y Fact. de conversión'!$C$5","v":3016.3670000000002}]
[null,"Masterbatch (Consumo de)","t",{"$f":"'InfoBase 6B1'!E56/'Prop. y Fact. de conversión'!$C$5","v":1465.8748000000001}]
[null,"Resina Pet para Envases (Consumo de)","t",{"$f":"'InfoBase 6B1'!E57/'Prop. y Fact. de conversión'!$C$5","v":84830.1541}]

{"sheet":"Prop. y Fact. de conversión","index":4,"n_rows":57,"n_cols":6,"rows_kept":57,"cut":false,"hidden":false,"merged":[[3,1,3,3],[1,1,1,3],[22,1,22,3],[31,1,31,3],[15,1,16,3],[18,1,18,3]]}
[]
[null,"Conversión de unidades"]
[]
[null,"Masa"]
[null,"1 tonelada",1000,"kg"]
[null,"1 kilogramo",1000,"g"]
[null,"1 tonelada",{"$f":"C5*C6","v":1000000},"g"]
[]
[null,"Prefijo","Simbolo","Factor "]
[null,"deca","da",{"$f":"10^1","v":10}]
[null,"hecto","h",{"$f":"10^2","v":100}]
[null,"kilo","k",{"$f":"10^3","v":1000}]
[null,"mega","M",{"$f":"10^6","v":1000000}]
[null,"giga","G",{"$f":"10^9","v":1000000000}]
[null,"tera","T",{"$f":"10^12","v":1000000000000}]
[null,"Fuente: Sistema Internacional - Guide for the Use of the International System of Units (SI)\nhttp://physics.nist.gov/cuu/pdf/sp811.pdf"]
[]
[]
[null,"Volumen"]
[null,"1 centimetro cúbico",{"$f":"1/1000","v":1E-3},"l"]
[null,"Fuente: http://www.metric-conversions.org/es/volumen/tabla-de-conversion-de-centimetros-cubicos-a-litros.htm"]
[]
[null,"Demanda Bioquímica de Oxígeno (DBO)"]
[]
[null,"DBO5",50,"g/hab.día"]
[]
[]
[]
[]
[]
[]
[null,"Densidades de bebidas"]
[]
[null,"Densidad del vino",{"$f":"(996+997)/2","v":996.5},"g/l"]
[null,"Densidad de cerveza",1010,"g/cm3"]
[]
[]
[]
[]
[null,null,null,null,null,"http://www.inti.gob.ar/interlaboratorios/informes/2010/alimentos/2010_informe_final_vinos.pdf"]
[]
[]
[]
[]
[]
[]
[]
[]
[]
[]
[]
[]
[]
[]
[]
[]
[null,null,null,null,null,"http://www.atpplleal.com/Pujat/file/DENSIDAD%20Y%20PESO%20ESPECIFICO.pdf"]

{"sheet":"FE 6B1","index":5,"n_rows":102,"n_cols":4,"rows_kept":102,"cut":false,"hidden":false,"merged":[[92,1,92,3],[1,1,1,2],[46,1,46,2],[99,1,99,3]]}
[]
[null,"Demanda Química de Oxígeno (DQO)"]
[]
[null,"ALIMENTOS","DQO\n(g/l)"]
[null,"ALIMENTOS"]
[null,"Carne de Ave Beneficiada",4.0999999999999996]
[null,"Carne de Vacuno Beneficiada",4.0999999999999996]
[null,"Conservas de Pescados y Mariscos",2.5]
[null,"Harina de Anchoveta, otras Especies y Residuos",2.5]
[null,"Jugos y Refrescos Diversos",2]
[null,"Esparragos Congelados",5]
[null,"Conservas de Esparragos",5]
[null,"Margarina",0.85]
[null,"Aceites Vegetal y Compuesto",0.85]
[null,"Leche Evaporada",2.7]
[null,"Quesos",2.7]
[null,"Yogurt",2.7]
[null,"Azúcar Refinada",3.2]
[]
[null,"ELABORACION DE BEBIDAS"]
[null,"Vinos y Espumantes",1.5]
[null,"Cerveza Blanca",2.9]
[]
[null,"FABRICACION DE PAPEL Y DE PRODUCTOS DE PAPEL"]
[null,"Papel Kraft y Similares",9]
[null,"Papel Bond y Similares",9]
[null,"Cartón Liner",9]
[null,"Cartón Corrugado",9]
[]
[null,"FABRICACION DE OTROS PRODUCTOS QUIMICOS"]
[null,"Productos de Limpieza del Hogar",0.85]
[null,"Champú",0.85]
[null,"Detergentes",0.85]
[null,"Jabón para Lavar Ropa",0.85]
[null,"Jabón de Tocador",0.85]
[]
[null,"FABRICACION DE PRODUCTOS DE PLASTICO"]
[null,"Polietileno (Consumo de)",3.7]
[null,"Poliestireno (Consumo de)",3.7]
[null,"Polipropileno (Consumo de)",3.7]
[null,"P V C (Consumo de)",3.7]
[null,"Plastificantes D O P (Consumo de)",3.7]
[null,"Masterbatch (Consumo de)",3.7]
[null,"Resina Pet para Envases (Consumo de)",3.7]
[null,"Fuente: OBP - Cuadro 5.4"]
[]
[null,"Generación de efluentes"]
[]
[null,"ALIMENTOS","Generación de efluenes\n(m3/Mg)"]
[null,"ALIMENTOS"]
[null,"Carne de Ave Beneficiada",13]
[null,"Carne de Vacuno Beneficiada",13]
[null,"Conservas de Pescados y Mariscos",13]
[null,"Harina de Anchoveta, otras Especies y Residuos",13]
[null,"Jugos y Refrescos Diversos",2]
[null,"Esparragos Congelados",20]
[null,"Conservas de Esparragos",20]
[null,"Margarina",3.1]
[null,"Aceites Vegetal y Compuesto",3.1]
[null,"Leche Evaporada",7]
[null,"Quesos",7]
[null,"Yogurt",7]
[null,"Azúcar Refinada",11]
[]
[null,"ELABORACION DE BEBIDAS"]
[null,"Vinos y Espumantes",23]
[null,"Cerveza Blanca",6.3]
[]
[null,"FABRICACION DE PAPEL Y DE PRODUCTOS DE PAPEL"]
[null,"Papel Kraft y Similares",162]
[null,"Papel Bond y Similares",162]
[null,"Cartón Liner",162]
[null,"Cartón Corrugado",162]
[]
[null,"FABRICACION DE OTROS PRODUCTOS QUIMICOS"]
[null,"Productos de Limpieza del Hogar",3]
[null,"Champú",3]
[null,"Detergentes",3]
[null,"Jabón para Lavar Ropa",3]
[null,"Jabón de Tocador",3]
[]
[null,"FABRICACION DE PRODUCTOS DE PLASTICO"]
[null,"Polietileno (Consumo de)",0.6]
[null,"Poliestireno (Consumo de)",0.6]
[null,"Polipropileno (Consumo de)",0.6]
[null,"P V C (Consumo de)",0.6]
[null,"Plastificantes D O P (Consumo de)",0.6]
[null,"Masterbatch (Consumo de)",0.6]
[null,"Resina Pet para Envases (Consumo de)",0.6]
[null,"Fuente: OBP - Cuadro 5.4"]
[]
[]
[null,"Factores de emisión para el tratamiento de aguas industriales"]
[]
[null,"Fracción de los efluentes tratados",0.2]
[null,"Factor de conversión de metano",0.9]
[null,"IPCC 1996 Capítulo Desperdicios Tabla 6-8"]
[]
[]
[null,"Capacidad máxima de producción de metano (Bo)"]
[]
[null,"Bo",0.25,"kg CH4/kg DBO"]

{"sheet":"Emisiones GEI 6B1","index":6,"n_rows":78,"n_cols":8,"rows_kept":78,"cut":false,"hidden":false,"merged":[[1,1,1,7],[7,1,8,1],[60,1,63,6],[3,2,3,3],[4,2,4,3],[5,2,5,3]]}
[]
[null,"Estimación de metano generado por el tratamiento de aguas residuales industriales"]
[]
[null,"Sector","Desechos"]
[null,"Categoría","Aguas residuales industriales"]
[null,"Código de categoría","6B1"]
[]
[null,"TIPO DE INDUSTRIA","A","B","C","D","E","F"]
[null,null,"Total producción industrial \n(t/año)","Componente orgánico degradable \n(Kg DQO/m3 agua residual)","Agua residual producida \n(m3/tonelada de producto)","Fracción del componente orgánico degradable removido como lodo","Total del componente orgánico del agua residual industrial                       \n(kg DQO/año)","Total  del componente orgánico del lodo industrial \n(kg DQO/año)"]
[null,null,null,null,null,null,"E = [A x B x C x(1-D)]","F = (A x B x C x D)"]
[null,"ALIMENTOS"]
[null,"Carne de Ave Beneficiada",{"$f":"'InfoProc 6B1'!D6","v":782365},{"$f":"'FE 6B1'!C6","v":4.0999999999999996},{"$f":"'FE 6B1'!C51","v":13},0,{"$f":"(C12*D12*E12*(1-F12))","v":41700054.499999993},{"$f":"C12*D12*E12*F12","v":0}]
[null,"Carne de Vacuno Beneficiada",{"$f":"'InfoProc 6B1'!D7","v":171872},{"$f":"'FE 6B1'!C7","v":4.0999999999999996},{"$f":"'FE 6B1'!C52","v":13},0,{"$f":"(C13*D13*E13*(1-F13))","v":9160777.5999999996},{"$f":"C13*D13*E13*F13","v":0}]
[null,"Conservas de Pescados y Mariscos",{"$f":"'InfoProc 6B1'!D8","v":77800},{"$f":"'FE 6B1'!C8","v":2.5},{"$f":"'FE 6B1'!C53","v":13},0,2528500,0]
[null,"Harina de Anchoveta, otras Especies y Residuos",{"$f":"'InfoProc 6B1'!D9","v":787400},{"$f":"'FE 6B1'!C9","v":2.5},{"$f":"'FE 6B1'!C54","v":13},0,25590500,0]
[null,"Jugos y Refrescos Diversos",{"$f":"'InfoProc 6B1'!D10","v":310346.15600000002},{"$f":"'FE 6B1'!C10","v":2},{"$f":"'FE 6B1'!C55","v":2},0,1241384.6240000001,0]
[null,"Esparragos Congelados",{"$f":"'InfoProc 6B1'!D11","v":10603},{"$f":"'FE 6B1'!C11","v":5},{"$f":"'FE 6B1'!C56","v":20},0,1060300,0]
[null,"Conservas de Esparragos",{"$f":"'InfoProc 6B1'!D12","v":31735},{"$f":"'FE 6B1'!C12","v":5},{"$f":"'FE 6B1'!C57","v":20},0,3173500,0]
[null,"Margarina",{"$f":"'InfoProc 6B1'!D13","v":21920},{"$f":"'FE 6B1'!C13","v":0.85},{"$f":"'FE 6B1'!C58","v":3.1},0,57759.200000000004,0]
[null,"Aceites Vegetal y Compuesto",{"$f":"'InfoProc 6B1'!D14","v":233965},{"$f":"'FE 6B1'!C14","v":0.85},{"$f":"'FE 6B1'!C59","v":3.1},0,616497.77500000002,0]
[null,"Leche Evaporada",{"$f":"'InfoProc 6B1'!D15","v":409468.9},{"$f":"'FE 6B1'!C15","v":2.7},{"$f":"'FE 6B1'!C60","v":7},0,7738962.21,0]
[null,"Quesos",{"$f":"'InfoProc 6B1'!D16","v":6358.9349000000002},{"$f":"'FE 6B1'!C16","v":2.7},{"$f":"'FE 6B1'!C61","v":7},0,120183.86961000001,0]
[null,"Yogurt",{"$f":"'InfoProc 6B1'!D17","v":135351.57699999999},{"$f":"'FE 6B1'!C17","v":2.7},{"$f":"'FE 6B1'!C62","v":7},0,2558144.8053000001,0]
[null,"Azúcar Refinada",{"$f":"'InfoProc 6B1'!D18","v":1039167.5},{"$f":"'FE 6B1'!C18","v":3.2},{"$f":"'FE 6B1'!C63","v":11},0,36578696,0]
[]
[null,"ELABORACION DE BEBIDAS"]
[null,"Vinos y Espumantes",{"$f":"'InfoProc 6B1'!D21","v":9759.8973805000005},{"$f":"'FE 6B1'!C21","v":1.5},{"$f":"'FE 6B1'!C66","v":23},0,336716.45962725003,{"$f":"C27*D27*E27*F27","v":0}]
[null,"Cerveza Blanca",{"$f":"'InfoProc 6B1'!D22","v":1242638.148},{"$f":"'FE 6B1'!C22","v":2.9},{"$f":"'FE 6B1'!C67","v":6.3},0,22702998.963959999,0]
[]
[null,"FABRICACION DE PAPEL Y DE PRODUCTOS DE PAPEL"]
[null,"Papel Kraft y Similares",{"$f":"'InfoProc 6B1'!D25","v":3429.2},{"$f":"'FE 6B1'!C25","v":9},{"$f":"'FE 6B1'!C70","v":162},0,4999773.5999999996,0]
[null,"Papel Bond y Similares",{"$f":"'InfoProc 6B1'!D26","v":38625.300000000003},{"$f":"'FE 6B1'!C26","v":9},{"$f":"'FE 6B1'!C71","v":162},0,56315687.399999999,0]
[null,"Cartón Liner",{"$f":"'InfoProc 6B1'!D27","v":55856.800000000003},{"$f":"'FE 6B1'!C27","v":9},{"$f":"'FE 6B1'!C72","v":162},0,81439214.400000006,0]
[null,"Cartón Corrugado",{"$f":"'InfoProc 6B1'!D28","v":18725.099999999999},{"$f":"'FE 6B1'!C28","v":9},{"$f":"'FE 6B1'!C73","v":162},0,27301195.800000001,0]
[]
[null,"FABRICACION DE OTROS PRODUCTOS QUIMICOS"]
[null,"Productos de Limpieza del Hogar",{"$f":"'InfoProc 6B1'!D31","v":22807.607},{"$f":"'FE 6B1'!C31","v":0.85},{"$f":"'FE 6B1'!C76","v":3},0,58159.397849999994,0]
[null,"Champú",{"$f":"'InfoProc 6B1'!D32","v":7679.2},{"$f":"'FE 6B1'!C32","v":0.85},{"$f":"'FE 6B1'!C77","v":3},0,19581.96,0]
[null,"Detergentes",{"$f":"'InfoProc 6B1'!D33","v":169944.9},{"$f":"'FE 6B1'!C33","v":0.85},{"$f":"'FE 6B1'!C78","v":3},0,433359.49499999994,0]
[null,"Jabón para Lavar Ropa",{"$f":"'InfoProc 6B1'!D34","v":34024.9},{"$f":"'FE 6B1'!C34","v":0.85},{"$f":"'FE 6B1'!C79","v":3},0,86763.494999999995,0]
[null,"Jabón de Tocador",{"$f":"'InfoProc 6B1'!D35","v":6973},{"$f":"'FE 6B1'!C35","v":0.85},{"$f":"'FE 6B1'!C80","v":3},0,17781.150000000001,0]
[]
[null,"FABRICACION DE PRODUCTOS DE PLASTICO"]
[null,"Polietileno (Consumo de)",{"$f":"'InfoProc 6B1'!D38","v":42688.121700000003},{"$f":"'FE 6B1'!C38","v":3.7},{"$f":"'FE 6B1'!C83","v":0.6},0,94767.630174000005,0]
[null,"Poliestireno (Consumo de)",{"$f":"'InfoProc 6B1'!D39","v":1083.7035000000001},{"$f":"'FE 6B1'!C39","v":3.7},{"$f":"'FE 6B1'!C84","v":0.6},0,2405.82177,0]
[null,"Polipropileno (Consumo de)",{"$f":"'InfoProc 6B1'!D40","v":40956.920100000003},{"$f":"'FE 6B1'!C40","v":3.7},{"$f":"'FE 6B1'!C85","v":0.6},0,90924.362622000001,0]
[null,"P V C (Consumo de)",{"$f":"'InfoProc 6B1'!D41","v":69437.689599999998},{"$f":"'FE 6B1'!C41","v":3.7},{"$f":"'FE 6B1'!C86","v":0.6},0,154151.670912,0]
[null,"Plastificantes D O P (Consumo de)",{"$f":"'InfoProc 6B1'!D42","v":3016.3670000000002},{"$f":"'FE 6B1'!C42","v":3.7},{"$f":"'FE 6B1'!C87","v":0.6},0,6696.3347400000011,0]
[null,"Masterbatch (Consumo de)",{"$f":"'InfoProc 6B1'!D43","v":1465.8748000000001},{"$f":"'FE 6B1'!C43","v":3.7},{"$f":"'FE 6B1'!C88","v":0.6},0,3254.2420560000005,0]
[null,"Resina Pet para Envases (Consumo de)",{"$f":"'InfoProc 6B1'!D44","v":84830.1541},{"$f":"'FE 6B1'!C44","v":3.7},{"$f":"'FE 6B1'!C89","v":0.6},0,188322.942102,0]
[null,null,null,null,null,"Total",{"$f":"SUM(G12:G50)","v":326377015.70972329},{"$f":"SUM(H12:H50)","v":0}]
[]
[]
[null,"A","B","C","D","E","F"]
[null,"Sistemas de manejo de aguas residuales ","Fracción de agua residual tratada por el sistema de manejo","Factor de conversión de metano \n(MCF)","Producto","Capacidad máxima de producción de metano - Bo\n(kg CH4/kg DC)","Factor de emisión para aguas residuales industriales\n(kg CH4/kg COD)"]
[null,null,null,null,"D = (B x C)",null,"F = (D x E)"]
[null,"No especificado",{"$f":"'FE 6B1'!C95","v":0.2},{"$f":"'FE 6B1'!C96","v":0.9},{"$f":"C57*D57","v":0.18000000000000002}]
[null,null,null,null,{"$f":"C58*D58","v":0}]
[null,null,null,"Aggregate MCF:",{"$f":"SUM(E57:E58)","v":0.18000000000000002},{"$f":"'FE 6B1'!C102","v":0.25},{"$f":"E59*F59","v":4.5000000000000005E-2}]
[]
[null,"Nota: Bo se expresa en unidades de kg CH4 / kg DC, donde DC es el indicador del componente degradable de los residuos (ya sea DQO o DBO). Por definición, DBO es menor o igual a COD; la máxima DBO posible, es de hecho, la DQO. Por lo tanto, al estimar el máximo potencial de producción de CH4 de DBO o DQO, el CH4 potencial máxima producida por unidad de BOD es equivalente a la máxima potencial CH4 producida por unidad de DQO. Este valor es 0,25. kg CH4 / kg de DQO."]
[]
[]
[]
[]
[null,"A","B","C","D","E","F"]
[null,"Sistemas de manejo de aguas residuales ","Fracción de lodo tratado por el sistema de manejo","Factor de conversión de metano \n(MCF)","Producto","Capacidad máxima de producción de metano - Bo\n(kg CH4/kg COD)","Factor de emisión para el lodo industrial \n(kg CH4/kg COD)"]
[null,null,null,null,"D = (B x C)",null,"F = (D x E)"]
[null,"No especificado",0,null,{"$f":"C69*D69","v":0}]
[null,null,null,null,{"$f":"C70*D70","v":0}]
[null,null,null,"Aggregate                 MCF:",{"$f":"SUM(E69:E70)","v":0},null,{"$f":"E71*F71","v":0}]
[]
[]
[null,null,"A","B","C","D","E"]
[null,null,"Total componente orgánico \n(Kg DQO/año)","Factor de Emisión \n(Kg CH4/Kg DQO)","Emisión de metano sin recuperación o quema \n(Kg CH4)","Metano recuperado o quemado \n(Kg CH4)","Emisiones netas de CH4 (Gg CH4)"]
[null,null,null,null,"C = ( A x B)",null,"E = (C - D) / 1 000 000"]
[null,"Agua residual",{"$f":"G51","v":326377015.70972329},{"$f":"G59","v":4.5000000000000005E-2},{"$f":"C77*D77","v":14686965.70693755},0,{"$f":"(E77-F77)/1000000","v":14.686965706937549}]
[null,"Lodos",{"$f":"H51","v":0},{"$f":"G71","v":0},{"$f":"C78*D78","v":0},null,{"$f":"(E78-F78)/1000000","v":0}]

{"sheet":"Resultados INGEI","index":7,"n_rows":10,"n_cols":7,"rows_kept":10,"cut":false,"hidden":false,"merged":[[9,1,9,5],[1,1,1,6]]}
[]
[null,"Inventario de emisiones de gases de efecto invernadero para sector desechos, categoría residuos sólidos (Perú - 2012)"]
[]
[]
[null,"Código de fuentes","Categorías de fuentes y sumideros","Dióxido de carbono\n[GgCO2]","Metano\n[GgCH4]","Óxido nitroso\n[GgN2O]","Emisiones de GEI\n[GgCO2e]"]
[null,"6A2","Sitios de eliminación de desechos",null,null,null,{"$f":"D6+E6*21+F6*310","v":0}]
[null,"6B1","Aguas residuales industriales",null,{"$f":"'Emisiones GEI 6B1'!G77","v":14.686965706937549},null,{"$f":"D7+E7*21+F7*310","v":308.42627984568855}]
[null,"6B2a","Aguas residuales domésticas",null,null,null,{"$f":"D8+E8*21+F8*310","v":0}]
[null,"6B2b","Excretas humanas"]
[null,"Total",null,null,null,null,{"$f":"SUM(G6:G9)","v":308.42627984568855}]